fUSD/lending_fUSD_20250414
["ID","MTS","AMOUNT","RATE_DAILY","PERIOD"]
[357959040,1744619449066,-500.0,0.00019999,2]
[357959041,1744619449076,-500.0,0.00019999,2]
[357959042,1744619449086,-500.0,0.00019999,2]
[357959043,1744619449096,-500.0,0.00019999,2]
[357959044,1744619449105,-592.1059884,0.00019999,2]
[357959045,1744619449115,-1072.49,0.00019999,2]
[357959046,1744619449124,-1072.49,0.00019999,2]
[357959047,1744619449134,-1072.49,0.00019999,2]
[357959048,1744619449143,-1072.49,0.00019999,2]
[357959049,1744619449152,-1072.49,0.00019999,2]
[357959050,1744619449163,-1072.49,0.00019999,2]
[357959051,1744619449172,-1072.49,0.00019999,2]
[357959052,1744619449182,-1072.49,0.00019999,2]
[357959053,1744619449191,-1072.49,0.00019999,2]
[357959054,1744619449201,-1072.49,0.00019999,2]
[357959055,1744619449210,-1072.49,0.00019999,2]
[357959056,1744619449219,-1072.49,0.00019999,2]
[357959057,1744619449229,-1072.49,0.00019999,2]
[357959058,1744619449238,-1072.49,0.00019999,2]
[357959059,1744619449247,-1072.49,0.00019999,2]
[357959060,1744619449256,-1072.49,0.00019999,2]
[357959061,1744619449266,-1072.49,0.00019999,2]
[357959062,1744619449278,-1072.49,0.00019999,2]
[357959063,1744619449287,-1072.49,0.00019999,2]
[357959064,1744619449297,-1072.49,0.00019999,2]
[357959065,1744619449306,-1072.49,0.00019999,2]
[357959066,1744619449316,-1072.65414242,0.00019999,2]
[357959067,1744619449325,-1000.0,0.00019999,2]
[357959068,1744619449335,-1000.0,0.00019999,2]
[357959069,1744619449344,-1000.0,0.00019999,2]
[357959070,1744619449354,-1000.0,0.00019999,2]
[357959071,1744619449363,-1000.0,0.00019999,2]
[357959072,1744619449373,-1000.0,0.00019999,2]
[357959073,1744619449382,-448.397339,0.00019999,2]
[357959074,1744619449392,-903.19,0.00019999,2]
[357959075,1744619449401,-2137.17,0.00019999,2]
[357959076,1744619449411,-2137.17,0.00019999,2]
[357959077,1744619449420,-2137.17,0.00019999,2]
[357959078,1744619449430,-2137.17,0.00019999,2]
[357959079,1744619449440,-2137.17,0.00019999,2]
[357959080,1744619449450,-2137.17,0.00019999,2]
[357959081,1744619449459,-2137.17,0.00019999,2]
[357959082,1744619449468,-2137.17,0.00019999,2]
[357959083,1744619449478,-2137.17,0.00019999,2]
[357959084,1744619449487,-2137.17,0.00019999,2]
[357959085,1744619449496,-2137.17,0.00019999,2]
[357959086,1744619449506,-2137.17,0.00019999,2]
[357959087,1744619449515,-2137.17,0.00019999,2]
[357959088,1744619449528,-2137.17,0.00019999,2]
[357959089,1744619449537,-2137.17,0.00019999,2]
[357959090,1744619449547,-2137.17,0.00019999,2]
[357959091,1744619449556,-2137.17,0.00019999,2]
[357959092,1744619449565,-2137.17,0.00019999,2]
[357959093,1744619449575,-2137.17,0.00019999,2]
[357959094,1744619449584,-2137.17,0.00019999,2]
[357959095,1744619449594,-2137.17,0.00019999,2]
[357959096,1744619449603,-2137.17,0.00019999,2]
[357959097,1744619449612,-2137.18475695,0.00019999,2]
[357959098,1744619449622,-150.0,0.00019999,2]
[357959099,1744619449631,-150.0,0.00019999,2]
[357959100,1744619449641,-150.0,0.00019999,2]
[357959101,1744619449651,-500.0,0.00019999,2]
[357959102,1744619449661,-500.0,0.00019999,2]
[357959103,1744619449671,-474.5,0.00019999,2]
[357959104,1744619449680,-150.0,0.00019999,2]
[357959105,1744619449690,-150.0,0.00019999,2]
[357959106,1744619449699,-150.0,0.00019999,2]
[357959107,1744619449708,-150.0,0.00019999,2]
[357959108,1744619449718,-150.0,0.00019999,2]
[357959109,1744619449728,-150.0,0.00019999,2]
[357959110,1744619449737,-150.0,0.00019999,2]
[357959111,1744619449747,-150.0,0.00019999,2]
[357959112,1744619449756,-155.40338861,0.00019999,2]
[357959113,1744619449766,-977.0,0.0002,2]
[357959114,1744619449777,-231248.15144369,0.0002,2]
[357959115,1744619449786,-262.45863438,0.0002,2]
[357959116,1744619449796,-203280.25899548,0.0002,2]
[357959117,1744619450723,-74.05898047,0.0002,2]
[357959118,1744619450908,-389.91807129,0.00019178,2]
[357959119,1744619450918,-1658.9797203,0.0002,2]
[357959120,1744619450947,-260.05932468,0.0002,2]
[357959121,1744619515800,-300.0,0.00019177,2]
[357959122,1744619515823,-549.35093872,0.00019178,2]
[357959123,1744619515847,-518.64,0.00019178,2]
[357959124,1744619515869,-500.0,0.00019178,2]
[357959125,1744619515894,-527.0089416,0.00019178,2]
[357959126,1744619515916,-500.0,0.00019178,2]
[357959127,1744619515939,-500.0,0.00019178,2]
[357959128,1744619515965,-216.56,0.00019178,2]
[357959129,1744619515987,-299.13943951,0.00019178,2]
[357959130,1744619516009,-568.7629136,0.00019178,2]
[357959131,1744619516032,-500.0,0.00019178,2]
[357959132,1744619516053,-500.0,0.00019178,2]
[357959133,1744619516075,-526.55329143,0.00019178,2]
[357959134,1744619516098,-500.0,0.00019178,2]
[357959135,1744619516120,-360.91887224,0.00019178,2]
[357959136,1744619516143,-500.0,0.00019178,2]
[357959137,1744619516165,-500.0,0.00019178,2]
[357959138,1744619516188,-500.0,0.00019178,2]
[357959139,1744619516209,-500.0,0.00019178,2]
[357959140,1744619516231,-500.0,0.00019178,2]
[357959141,1744619516253,-560.18171021,0.00019178,2]
[357959142,1744619516274,-500.0,0.00019178,2]
[357959143,1744619516296,-539.9119914,0.00019178,2]
[357959144,1744619516318,-500.0,0.00019178,2]
[357959145,1744619516340,-500.0,0.00019178,2]
[357959146,1744619516363,-582.92330797,0.00019178,2]
[357959147,1744619516387,-787.11,0.00019178,2]
[357959148,1744619516408,-500.0,0.00019178,2]
[357959149,1744619516431,-35108.78,0.00019178,2]
[357959150,1744619516452,-500.0,0.00019178,2]
[357959151,1744619516474,-500.0,0.00019178,2]
[357959152,1744619516497,-500.0,0.00019178,2]
[357959153,1744619516521,-500.0,0.00019178,2]
[357959154,1744619516542,-500.0,0.00019178,2]
[357959155,1744619516564,-500.0,0.00019178,2]
[357959156,1744619516587,-559.12986258,0.00019178,2]
[357959157,1744619516609,-500.0,0.00019178,2]
[357959158,1744619516631,-500.0,0.00019178,2]
[357959159,1744619516654,-428.9862781,0.00019178,2]
[357959160,1744619516676,-500.0,0.00019178,2]
[357959161,1744619516711,-500.0,0.00019178,2]
[357959162,1744619516737,-514.09,0.00019178,2]
[357959163,1744619516761,-500.0,0.00019178,2]
[357959164,1744619516784,-500.0,0.00019178,2]
[357959165,1744619516806,-500.0,0.00019178,2]
[357959166,1744619516828,-500.0,0.00019178,2]
[357959167,1744619516850,-500.0,0.00019178,2]
[357959168,1744619516873,-500.0,0.00019178,2]
[357959169,1744619516895,-500.0,0.00019178,2]
[357959170,1744619516917,-500.0,0.00019178,2]
[357959171,1744619516940,-500.0,0.00019178,2]
[357959172,1744619516967,-534.8,0.00019178,2]
[357959173,1744619516991,-541.79650456,0.00019178,2]
[357959174,1744619517013,-518.73191066,0.00019178,2]
[357959175,1744619517041,-500.0,0.00019178,2]
[357959176,1744619517063,-500.0,0.00019178,2]
[357959177,1744619517086,-500.0,0.00019178,2]
[357959178,1744619517109,-500.0,0.00019178,2]
[357959179,1744619517132,-527.66009093,0.00019178,2]
[357959180,1744619517155,-500.0,0.00019178,2]
[357959181,1744619517178,-500.0,0.00019178,2]
[357959182,1744619517201,-500.0,0.00019178,2]
[357959183,1744619517225,-631.06,0.00019178,2]
[357959184,1744619517247,-500.0,0.00019178,2]
[357959185,1744619517269,-500.0,0.00019178,2]
[357959186,1744619517297,-500.0,0.00019178,2]
[357959187,1744619517320,-500.0,0.00019178,2]
[357959188,1744619517344,-547.22802066,0.00019178,2]
[357959189,1744619517367,-561.01508226,0.00019178,2]
[357959190,1744619517391,-440.91,0.00019452,2]
[357959191,1744619517413,-500.0,0.00019452,2]
[357959192,1744619517435,-500.0,0.00019452,2]
[357959193,1744619517709,-500.0,0.00019452,2]
[357959194,1744619517738,-500.0,0.00019452,2]
[357959195,1744619517763,-787.11,0.00019452,2]
[357959196,1744619517787,-35108.78,0.00019452,2]
[357959197,1744619517810,-390.4,0.00019452,2]
[357959198,1744619517832,-500.0,0.00019452,2]
[357959199,1744619517854,-514.09,0.00019452,2]
[357959200,1744619517876,-500.0,0.00019452,2]
[357959201,1744619517899,-500.0,0.00019452,2]
[357959202,1744619517921,-500.0,0.00019452,2]
[357959203,1744619517943,-500.0,0.00019452,2]
[357959204,1744619517972,-23900.0,0.00019545,2]
[357959205,1744619517995,-500.0,0.00019726,2]
[357959206,1744619518018,-500.0,0.00019726,2]
[357959207,1744619518040,-500.0,0.00019726,2]
[357959208,1744619518062,-150.5,0.00019726,2]
[357959209,1744619518085,-787.11,0.00019726,2]
[357959210,1744619518109,-35108.78,0.00019726,2]
[357959211,1744619518135,-500.0,0.00019726,2]
[357959212,1744619518159,-500.0,0.00019726,2]
[357959213,1744619518183,-514.09,0.00019726,2]
[357959214,1744619518206,-208.35038836,0.00019726,2]
[357959215,1744619518227,-1099.8604836,0.00019799,2]
[357959216,1744619518250,-863.66943877,0.000199,2]
[357959217,1744619518272,-332.75612821,0.000199,2]
[357959218,1744619518293,-346.3785409,0.000199,2]
[357959219,1744619518316,-69170.24600723,0.000199,2]
[357959220,1744619518338,-885.0,0.0002,2]
[357959221,1744619518362,-1759589.91917813,0.0002,2]
[357959222,1744619518383,-1139.23249706,0.0002,2]
[357959223,1744619518407,-3293026.44180704,0.0002,2]
[357959224,1744619518428,-80150.99745886,0.0002,2]
[357959225,1744619518449,-10000.0,0.0002,2]
[357959226,1744619518471,-1479.6060064,0.0002,2]
[357959227,1744619518493,-4294.15613499,0.0002,2]
[357959228,1744619518515,-50000.0,0.0002,2]
[357959229,1744619518537,-1804.6,0.0002,2]
[357959230,1744619518559,-6653.0,0.0002,2]
[357959231,1744619518581,-518.06989278,0.0002,2]
[357959232,1744619518603,-126544.571127,0.0002,2]
[357959233,1744619518625,-3950.0,0.0002,2]
[357959234,1744619518648,-1248.97957242,0.0002,2]
[357959235,1744619518669,-11816.46286103,0.0002,2]
[357959236,1744619518692,-1007.75505561,0.0002,2]
[357959237,1744619518713,-1749.90608021,0.0002,2]
[357959238,1744619518737,-1315263.12218497,0.0002,2]
[357959239,1744619584261,-359.80415579,0.00019078,2]
[357959240,1744619584290,-300.0,0.00019177,2]
[357959241,1744619584318,-542.69282103,0.00019178,2]
[357959242,1744619584348,-181.68,0.00019178,2]
[357959243,1744619584375,-500.0,0.00019178,2]
[357959244,1744619584405,-500.0,0.00019178,2]
[357959245,1744619584434,-500.0,0.00019178,2]
[357959246,1744619584465,-500.0,0.00019178,2]
[357959247,1744619584498,-500.0,0.00019178,2]
[357959248,1744619584526,-507.64273008,0.00019178,2]
[357959249,1744619584556,-1681.17,0.00019178,2]
[357959250,1744619584585,-500.0,0.00019178,2]
[357959251,1744619584612,-500.0,0.00019178,2]
[357959252,1744619584639,-500.0,0.00019178,2]
[357959253,1744619584671,-627.64,0.00019178,2]
[357959254,1744619584698,-500.0,0.00019178,2]
[357959255,1744619584726,-500.0,0.00019178,2]
[357959256,1744619584753,-500.0,0.00019178,2]
[357959257,1744619584780,-500.0,0.00019178,2]
[357959258,1744619584808,-500.0,0.00019178,2]
[357959259,1744619584836,-522.82652866,0.00019178,2]
[357959260,1744619584864,-592.76663329,0.00019178,2]
[357959261,1744619584890,-4096.9,0.00019178,2]
[357959262,1744619584918,-500.0,0.00019178,2]
[357959263,1744619584944,-500.0,0.00019178,2]
[357959264,1744619584972,-500.0,0.00019178,2]
[357959265,1744619585002,-500.0,0.00019178,2]
[357959266,1744619585028,-548.53,0.00019178,2]
[357959267,1744619585057,-500.0,0.00019178,2]
[357959268,1744619585085,-500.0,0.00019178,2]
[357959269,1744619585112,-544.24402873,0.00019178,2]
[357959270,1744619585138,-302.1341821,0.00019178,2]
[357959271,1744619585166,-500.0,0.00019178,2]
[357959272,1744619585193,-500.0,0.00019178,2]
[357959273,1744619585220,-500.0,0.00019178,2]
[357959274,1744619585247,-500.04593764,0.00019178,2]
[357959275,1744619585274,-500.0,0.00019178,2]
[357959276,1744619585302,-500.0,0.00019178,2]
[357959277,1744619585329,-500.0,0.00019178,2]
[357959278,1744619585357,-500.0,0.00019178,2]
[357959279,1744619585385,-500.0,0.00019178,2]
[357959280,1744619585413,-500.0,0.00019178,2]
[357959281,1744619585441,-500.0,0.00019178,2]
[357959282,1744619585469,-500.0,0.00019178,2]
[357959283,1744619585496,-500.0,0.00019178,2]
[357959284,1744619585523,-500.0,0.00019178,2]
[357959285,1744619585552,-500.0,0.00019178,2]
[357959286,1744619585579,-500.0,0.00019178,2]
[357959287,1744619585607,-500.0,0.00019178,2]
[357959288,1744619585635,-500.0,0.00019178,2]
[357959289,1744619585663,-521.24087855,0.00019178,2]
[357959290,1744619585691,-500.0,0.00019178,2]
[357959291,1744619585719,-635.4,0.00019178,2]
[357959292,1744619585746,-500.0,0.00019178,2]
[357959293,1744619585772,-500.0,0.00019178,2]
[357959294,1744619585800,-831.11,0.00019178,2]
[357959295,1744619585829,-500.0,0.00019178,2]
[357959296,1744619585856,-562.11186947,0.00019178,2]
[357959297,1744619585884,-500.0,0.00019178,2]
[357959298,1744619585912,-500.0,0.00019178,2]
[357959299,1744619585939,-500.0,0.00019178,2]
[357959300,1744619585968,-503.84499395,0.00019178,2]
[357959301,1744619585998,-500.0,0.00019178,2]
[357959302,1744619586029,-173.22,0.00019178,2]
[357959303,1744619586058,-500.0,0.00019178,2]
[357959304,1744619586086,-500.0,0.00019178,2]
[357959305,1744619586113,-500.0,0.00019178,2]
[357959306,1744619586141,-500.0,0.00019178,2]
[357959307,1744619586169,-500.0,0.00019178,2]
[357959308,1744619586195,-500.0,0.00019178,2]
[357959309,1744619586224,-1681.17,0.00019452,2]
[357959310,1744619586251,-627.64,0.00019452,2]
[357959311,1744619586277,-500.0,0.00019452,2]
[357959312,1744619586305,-500.0,0.00019452,2]
[357959313,1744619586333,-4096.9,0.00019452,2]
[357959314,1744619586361,-572.02972999,0.00019452,2]
[357959315,1744619586388,-500.0,0.00019452,2]
[357959316,1744619586415,-500.0,0.00019452,2]
[357959317,1744619586443,-500.0,0.00019452,2]
[357959318,1744619586470,-500.0,0.00019452,2]
[357959319,1744619586497,-500.0,0.00019452,2]
[357959320,1744619586524,-500.0,0.00019452,2]
[357959321,1744619586553,-635.4,0.00019452,2]
[357959322,1744619586581,-831.11,0.00019452,2]
[357959323,1744619586607,-500.0,0.00019452,2]
[357959324,1744619586634,-500.0,0.00019452,2]
[357959325,1744619586662,-500.0,0.00019452,2]
[357959326,1744619586688,-294.77,0.00019452,2]
[357959327,1744619586716,-1681.17,0.00019726,2]
[357959328,1744619586743,-627.64,0.00019726,2]
[357959329,1744619586770,-607.23,0.00019726,2]
[357959330,1744619586797,-4096.9,0.00019726,2]
[357959331,1744619586825,-500.0,0.00019726,2]
[357959332,1744619586854,-401.72,0.00019726,2]
[357959333,1744619586880,-500.0,0.00019726,2]
[357959334,1744619586908,-500.0,0.00019726,2]
[357959335,1744619586934,-500.0,0.00019726,2]
[357959336,1744619586963,-635.4,0.00019726,2]
[357959337,1744619586993,-831.11,0.00019726,2]
[357959338,1744619587020,-500.0,0.00019726,2]
[357959339,1744619587047,-500.0,0.00019726,2]
[357959340,1744619587074,-824.8953627,0.00019799,2]
[357959341,1744619587249,-8007.07964563,0.000199,2]
[357959342,1744619587277,-500.0,0.00019973,2]
[357959343,1744619587303,-14963.5184951,0.00019986,2]
[357959344,1744619587330,-151.0,0.00019988,2]
[357959345,1744619587359,-500.0,0.00019999,2]
[357959346,1744619587387,-500.0,0.00019999,2]
[357959347,1744619587415,-484.19222109,0.00019999,2]
[357959348,1744619587442,-500.0,0.00019999,2]
[357959349,1744619587470,-500.0,0.00019999,2]
[357959350,1744619587498,-500.0,0.00019999,2]
[357959351,1744619587528,-500.0,0.00019999,2]
[357959352,1744619587557,-500.0,0.00019999,2]
[357959353,1744619587587,-500.0,0.00019999,2]
[357959354,1744619587617,-500.0,0.00019999,2]
[357959355,1744619587645,-500.0,0.00019999,2]
[357959356,1744619587673,-500.0,0.00019999,2]
[357959357,1744619587701,-300.0,0.00019999,2]
[357959358,1744619587729,-500.0,0.00019999,2]
[357959359,1744619587756,-500.0,0.00019999,2]
[357959360,1744619587781,-151.0,0.00019999,2]
[357959361,1744619587807,-887.0,0.0002,2]
[357959362,1744619587836,-379768.82146136,0.0002,2]
[357959363,1744619587863,-262.45863437,0.0002,2]
[357959364,1744619588067,-359.80415579,0.0002,2]
[357959365,1744619588078,-300.0,0.0002,2]
[357959366,1744619588093,-542.69282103,0.0002,2]
[357959367,1744619588105,-181.68,0.0002,2]
[357959368,1744619588124,-500.0,0.0002,2]
[357959369,1744619588141,-500.0,0.0002,2]
[357959370,1744619588158,-500.0,0.0002,2]
[357959371,1744619588170,-500.0,0.0002,2]
[357959372,1744619588181,-500.0,0.0002,2]
[357959373,1744619588198,-507.64273008,0.0002,2]
[357959374,1744619588213,-1681.17,0.0002,2]
[357959375,1744619588224,-500.0,0.0002,2]
[357959376,1744619588239,-500.0,0.0002,2]
[357959377,1744619588250,-500.0,0.0002,2]
[357959378,1744619588265,-627.64,0.0002,2]
[357959379,1744619588280,-500.0,0.0002,2]
[357959380,1744619588291,-500.0,0.0002,2]
[357959381,1744619588302,-500.0,0.0002,2]
[357959382,1744619588317,-500.0,0.0002,2]
[357959383,1744619588328,-500.0,0.0002,2]
[357959384,1744619588339,-522.82652866,0.0002,2]
[357959385,1744619588354,-592.76663329,0.0002,2]
[357959386,1744619588366,-4096.9,0.0002,2]
[357959387,1744619588381,-500.0,0.0002,2]
[357959388,1744619588397,-500.0,0.0002,2]
[357959389,1744619588414,-500.0,0.0002,2]
[357959390,1744619588425,-500.0,0.0002,2]
[357959391,1744619588440,-548.53,0.0002,2]
[357959392,1744619588451,-500.0,0.0002,2]
[357959393,1744619588463,-500.0,0.0002,2]
[357959394,1744619588478,-544.24402873,0.0002,2]
[357959395,1744619588531,-302.1341821,0.0002,2]
[357959396,1744619588561,-500.0,0.0002,2]
[357959397,1744619588572,-500.0,0.0002,2]
[357959398,1744619588584,-500.0,0.0002,2]
[357959399,1744619588599,-500.04593764,0.0002,2]
[357959400,1744619588610,-500.0,0.0002,2]
[357959401,1744619588621,-500.0,0.0002,2]
[357959402,1744619588632,-500.0,0.0002,2]
[357959403,1744619588643,-500.0,0.0002,2]
[357959404,1744619588654,-500.0,0.0002,2]
[357959405,1744619588665,-500.0,0.0002,2]
[357959406,1744619588676,-500.0,0.0002,2]
[357959407,1744619588687,-500.0,0.0002,2]
[357959408,1744619588704,-500.0,0.0002,2]
[357959409,1744619588715,-500.0,0.0002,2]
[357959410,1744619588726,-500.0,0.0002,2]
[357959411,1744619588736,-500.0,0.0002,2]
[357959412,1744619588747,-500.0,0.0002,2]
[357959413,1744619588758,-500.0,0.0002,2]
[357959414,1744619588769,-521.24087855,0.0002,2]
[357959415,1744619588780,-500.0,0.0002,2]
[357959416,1744619588795,-635.4,0.0002,2]
[357959417,1744619588806,-500.0,0.0002,2]
[357959418,1744619588821,-500.0,0.0002,2]
[357959419,1744619588833,-831.11,0.0002,2]
[357959420,1744619588843,-500.0,0.0002,2]
[357959421,1744619588858,-562.11186947,0.0002,2]
[357959422,1744619588869,-500.0,0.0002,2]
[357959423,1744619588890,-500.0,0.0002,2]
[357959424,1744619588901,-500.0,0.0002,2]
[357959425,1744619588913,-503.84499395,0.0002,2]
[357959426,1744619588934,-500.0,0.00019178,2]
[357959427,1744619588945,-25.54569667,0.00019178,2]
[357959428,1744619588955,-147.67430333,0.0002,2]
[357959429,1744619588965,-500.0,0.0002,2]
[357959430,1744619588990,-500.0,0.00019178,2]
[357959431,1744619589001,-500.0,0.0002,2]
[357959432,1744619589014,-500.0,0.0002,2]
[357959433,1744619589027,-500.0,0.0002,2]
[357959434,1744619589038,-500.0,0.0002,2]
[357959435,1744619589056,-1681.17,0.0002,2]
[357959436,1744619589070,-627.64,0.0002,2]
[357959437,1744619589083,-500.0,0.0002,2]
[357959438,1744619589101,-500.0,0.0002,2]
[357959439,1744619589112,-4096.9,0.0002,2]
[357959440,1744619589124,-572.02972999,0.0002,2]
[357959441,1744619589140,-500.0,0.0002,2]
[357959442,1744619589152,-500.0,0.0002,2]
[357959443,1744619589167,-500.0,0.0002,2]
[357959444,1744619589190,-500.0,0.0002,2]
[357959445,1744619589200,-500.0,0.0002,2]
[357959446,1744619589212,-500.0,0.0002,2]
[357959447,1744619589227,-635.4,0.0002,2]
[357959448,1744619589238,-831.11,0.0002,2]
[357959449,1744619589250,-500.0,0.0002,2]
[357959450,1744619589261,-500.0,0.0002,2]
[357959451,1744619589276,-500.0,0.0002,2]
[357959452,1744619589287,-294.77,0.0002,2]
[357959453,1744619589299,-1681.17,0.0002,2]
[357959454,1744619589310,-627.64,0.0002,2]
[357959455,1744619589322,-607.23,0.0002,2]
[357959456,1744619589334,-4096.9,0.0002,2]
[357959457,1744619589345,-500.0,0.0002,2]
[357959458,1744619589357,-401.72,0.0002,2]
[357959459,1744619589368,-500.0,0.0002,2]
[357959460,1744619589379,-500.0,0.0002,2]
[357959461,1744619589391,-500.0,0.0002,2]
[357959462,1744619589402,-635.4,0.0002,2]
[357959463,1744619589417,-831.11,0.0002,2]
[357959464,1744619589428,-500.0,0.0002,2]
[357959465,1744619589443,-500.0,0.0002,2]
[357959466,1744619589454,-824.8953627,0.0002,2]
[357959467,1744619589466,-8007.07964563,0.0002,2]
[357959468,1744619589479,-500.0,0.0002,2]
[357959469,1744619589491,-14963.5184951,0.0002,2]
[357959470,1744619589502,-151.0,0.0002,2]
[357959471,1744619589513,-500.0,0.0002,2]
[357959472,1744619589524,-500.0,0.0002,2]
[357959473,1744619589535,-484.19222109,0.0002,2]
[357959474,1744619589555,-183.07776595,0.00019999,2]
[357959475,1744619589565,-316.92223405,0.0002,2]
[357959476,1744619589576,-500.0,0.0002,2]
[357959477,1744619589591,-500.0,0.0002,2]
[357959478,1744619589603,-500.0,0.0002,2]
[357959479,1744619589618,-500.0,0.0002,2]
[357959480,1744619589632,-500.0,0.0002,2]
[357959481,1744619589643,-500.0,0.0002,2]
[357959482,1744619589654,-500.0,0.0002,2]
[357959483,1744619589674,-500.0,0.0002,2]
[357959484,1744619589685,-300.0,0.0002,2]
[357959485,1744619589702,-500.0,0.00019178,2]
[357959486,1744619589713,-500.0,0.0002,2]
[357959487,1744619589728,-151.0,0.0002,2]
[357959488,1744619589744,-887.0,0.0002,2]
[357959489,1744619589759,-379768.82146136,0.0002,2]
[357959490,1744619589770,-262.45863437,0.0002,2]
[357959491,1744619589787,-500.0,0.00019178,2]
[357959492,1744619589796,-602470.02938094,0.0002,2]
[357959493,1744619732351,895.03,0.00013699,2]
[357959494,1744619732562,895.03,0.00013699,2]
[357959495,1744619732967,895.03,0.00013699,2]
[357959496,1744619733301,895.03,0.00013699,2]
[357959497,1744619733640,895.03,0.00013699,2]
[357959498,1744619734023,895.03,0.00013699,2]
[357959499,1744619734421,382.82823015,0.00013699,2]
[357959500,1744619734445,512.20176985,0.00013699,2]
[357959501,1744619734827,895.03,0.00013699,2]
[357959502,1744619735195,895.03,0.00013699,2]
[357959503,1744619735617,895.03,0.00013699,2]
[357959504,1744619735966,895.03,0.00013699,2]
[357959505,1744619738199,895.03,0.00013699,2]
[357959506,1744619739062,895.03,0.00013699,2]
[357959507,1744619739393,895.03,0.00013699,2]
[357959508,1744619739771,895.03,0.00013699,2]
[357959509,1744619740193,895.03,0.00013699,2]
[357959510,1744619740492,895.03,0.00013699,2]
[357959511,1744619740847,895.03,0.00013699,2]
[357959512,1744619741205,245.49112776,0.00013699,2]
[357959513,1744619741229,649.53887224,0.00013699,2]
[357959514,1744619741704,895.19888631,0.00013699,2]
[357959515,1744619753331,500.0,0.0002,3]
[357959516,1744619764458,502.0,0.0002,3]
[357959517,1744619772600,500.0,0.0002,3]
[357959518,1744619782193,500.0,0.0002,3]
[357959519,1744619790385,500.0,0.0002,3]
[357959520,1744619798506,500.0,0.0002,3]
[357959521,1744619806746,497.0,0.0002,3]
[357959522,1744619893408,-151.0,0.00018923,2]
[357959523,1744619920088,-182.24834368,0.00018897,2]
[357959525,1744620244318,582.67,0.00016718,2]
[357959526,1744620245259,-162.68155911,0.00018897,2]
[357959528,1744620416119,-200.0,0.00018897,2]
[357959529,1744620416142,-434.93237535,0.00018897,2]
[357959530,1744620518419,-322.18663544,0.0001864,2]
[357959531,1744620549272,-150.0,0.0001864,2]
[357959536,1744620631959,-250.0,0.00018462,2]
[357959537,1744620631969,-7334.45218143,0.0001864,2]
[357959569,1744620632739,-252.18114062,0.0001864,2]
[357959581,1744620637706,-10520.71004251,0.0001864,2]
[357959582,1744620637715,-258.72132409,0.00018798,2]
[357959583,1744620637725,-220.13772186,0.00018897,2]
[357959584,1744620637735,-10.5,0.00018923,2]
[357959585,1744620637744,-582.67,0.00018982,2]
[357959586,1744620637753,-250.0,0.00019,2]
[357959587,1744620637763,-1173.17211233,0.00019078,2]